Cogmind - Beta 11.1 @@@ ROGUE MODE // 2022.11.08 @ 23:18:14 Player: JoshKwa Result: Destroyed by Y-45 Defender with Heavy Assault Rifle Performance ------------- Evolutions (2) 1000 Regions Visited (3) 600 Robots Destroyed (31) 155 Value Destroyed (958) 958 Prototype IDs (7) 140 Alien Tech Used (0) 0 Bonus (222) 222 TOTAL SCORE: 3075 Bonus ------- Pacifist 200 High Alert Combat Kills 22 Cogmind --------- Core Integrity 0/550 Matter 260/300 Energy 100/100 System Corruption 2% Temperature Cool (27) Movement Core (50) Location -8/Materials Parts ------- > --- POWER (2) -------- (None) > --- PROPULSION (4) --- (None) > --- UTILITY (3) ------ Signal Interpreter Hacking Suite > --- WEAPON (2) ------- Hammer > --- INVENTORY (5) ---- Structural Scanner Peak State ------------ > --- POWER ------------ Improved Ion Engine Light Deuterium Engine > --- PROPULSION ------- Aluminum Leg Aluminum Leg Improved Aluminum Leg Improved Aluminum Leg > --- UTILITY ---------- Visual Processing Unit Sensor Array Signal Interpreter > --- WEAPON ----------- Advanced Beam Cannon Heavy Assault Rifle > --- INVENTORY -------- Structural Scanner Hacking Suite Heavy Particle Cannon Heavy Assault Rifle Minigun [Rating: 21] Favorites ----------- Power Light Ion Engine Engine Light Ion Engine Power Core Light Nuclear Core Propulsion Improved Aluminum Leg Leg Improved Aluminum Leg Wheel Armored Wheel Utility Signal Interpreter Device Sensor Array Processor Signal Interpreter Hackware Hacking Suite Protection Light Armor Plating Weapon Advanced Beam Cannon Energy Gun EM Pulse Gun Energy Cannon Advanced Beam Cannon Ballistic Gun Heavy Assault Rifle Ballistic Cannon Improved Light Cannon Impact Weapon Hammer Slashing Weapon Blade Saw Special Melee Weapon Datajack Build | -11 -10 -9 -8 ------- Run | Scr Mat Mat Mat Slots Evolved 4 | . . 2 2 Power 1 | . . 1 . Propulsion 2 | . . . 2 Utility 1 | . . 1 . Weapon . | . . . . Parts Attached 50 | 5 2 25 18 Power 12 | 1 . 8 3 Engine 11 | 1 . 8 2 Core 1 | . . . 1 Reactor . | . . . . Propulsion 11 | 2 . 4 5 Treads . | . . . . Leg 7 | . . 2 5 Wheel 4 | 2 . 2 . Hover . | . . . . Flight . | . . . . Utility 8 | . 2 3 3 Device 2 | . 1 1 . Storage . | . . . . Processor 3 | . . 2 1 Hackware 1 | . . . 1 Protection 2 | . 1 . 1 Artifact . | . . . . Weapon 19 | 2 . 10 7 Energy Gun 2 | 2 . . . Energy Cannon 3 | . . 2 1 Ballistic Gun 7 | . . 4 3 Ballistic Cannon 4 | . . 4 . Launcher . | . . . . Special Weapon . | . . . . Impact Weapon 1 | . . . 1 Slashing Weapon 1 | . . . 1 Piercing Weapon . | . . . . Special Melee Weapon 1 | . . . 1 Unidentified Prototypes 2 | . . 2 . Parts Lost 20 | . . 5 15 Power 6 | . . 2 4 Propulsion 6 | . . 1 5 Utility 4 | . . 1 3 Weapon 4 | . . 1 3 Highest Loss Streak 10 | . . 3 10 To Critical Strikes . | . . . . Average Slot Usage (%) 85 | . 86 90 81 Engine 17 | . 14 21 14 Leg 14 | . . 8 22 Wheel 7 | . 28 13 . Device 7 | . 2 7 8 Processor 14 | . . 13 17 Protection 2 | . 12 4 . Energy Gun 3 | . 28 4 . Energy Cannon 4 | . . 3 5 Ballistic Gun 7 | . . 6 9 Ballistic Cannon 2 | . . 6 . Naked Turns . | . . . . Heaviest Build 21 | 6 10 21 20 Greatest Support 46 | 26 26 28 46 Greatest Overweight (x) 6 | . . . 6 Average Overweight (x) . | . . . . Largest Inventory Capacity 5 | 5 5 5 5 Average Capacity 5 | 5 5 5 5 Most Carried 5 | 3 3 5 5 Average Carried 2 | 1 2 3 2 Final Capacity 5 | 5 5 5 5 Final Carried 2 | 2 2 2 1 Class Distribution -------------------- 48% | Scavenger-Skirmisher 39% | Mutant 10% | Scavenger-Mutant Dominant Class ---------------- Mutant | -10/Materials Mutant | -9/Materials Scavenger-Skirmisher | -8/Materials Resources | -11 -10 -9 -8 ----------- Run | Scr Mat Mat Mat Matter Collected 1073 | 244 . 606 223 Remotely . | . . . . Salvage Created 1014 | . . 668 346 Parts 58 | . . 43 15 Haulers Intercepted . | . . . . Recyclers Shooed 1 | . . . 1 Parts Field Recycled . | . . . . Retrieved Matter . | . . . . Parts Self-Destructed . | . . . . Prevented . | . . . . Kills | -11 -10 -9 -8 ------- Run | Scr Mat Mat Mat Combat Hostiles Destroyed 26 | . . 19 7 Melee 2 | . . . 2 Guns 10 | . . 7 3 Cannons 14 | . . 12 2 Classes Destroyed 9 | . . 6 3 Worker 1 | . . 1 . Recycler 1 | . . 1 . Operator 1 | . . . 1 Watcher 2 | . . 2 . Swarmer 7 | . . 7 . Grunt 11 | . . 6 5 Brawler 1 | . . . 1 Sentry 6 | . . 6 . Hunter 1 | . . . 1 Best Kill Streak 13 | . . 13 3 Combat Bots Only 11 | . . 11 3 Max Kills in Single Turn 2 | . . 2 1 Gunslinging . | . . . . Exploded . | . . . . Melee 1 | . . . 1 Uniques/NPCs Destroyed . | . . . . Combat | -11 -10 -9 -8 -------- Run | Scr Mat Mat Mat Damage Taken 3131 | . . 1308 1823 Core 800 | . . 240 560 Absorbed by Shields . | . . . . Core Remaining (%) 80 | 100 100 40 . Volleys Fired 93 | . . 62 31 Largest 2 | . . 2 2 Hottest 107 | . . 107 100 Shots Fired 175 | . . 123 52 Gun 99 | . . 55 44 Cannon 76 | . . 68 8 Launcher . | . . . . Special . | . . . . Kinetic 147 | . . 103 44 Thermal 25 | . . 17 8 Explosive . | . . . . Electromagnetic 3 | . . 3 . Robot Hit Streak 18 | . . 17 18 Robot Miss Streak 3 | . . 3 2 Penetration Max . | . . . . Secondary Targets 2 | . . . 2 Max Gunslinging Chain 1 | . . . 1 Shots Hit Robots 124 | . . 80 44 Core Hits 45 | . . 29 16 Critical Kills 1 | . . . 1 Critical Parts Destroyed . | . . . . Critical Strikes 3 | . . 2 1 Blast 2 | . . 2 . Smash 1 | . . . 1 Melee Attacks 7 | . . . 7 Impact 4 | . . . 4 Slashing 1 | . . . 1 Piercing . | . . . . Sneak Attacks . | . . . . Combat Hostiles . | . . . . Follow-up Attacks . | . . . . Damage Inflicted 2327 | . . 1556 771 Guns 1143 | . . 608 535 Cannons 1066 | . . 929 137 Explosions . | . . . . Melee 98 | . . . 98 Ramming 20 | . . 19 1 Kinetic 1816 | . . 1281 535 Thermal 361 | . . 224 137 Explosive . | . . . . Electromagnetic 32 | . . 32 . Impact 78 | . . . 78 Slashing 20 | . . . 20 Piercing . | . . . . Highest Corruption 2 | . 1 . 2 Average Corruption 1 | . 1 . 1 Corruption Purged . | . . . . Corruption Blocked . | . . . . Effects 7 | . . . 7 Message Errors 2 | . . . 2 Matter Fused 1 | . . . 1 Energy Discharges 2 | . . . 2 Parts Rejected 1 | . . . 1 Data Loss (minor) 1 | . . . 1 Overload Shots . | . . . . Overflow Damage 33 | . . 33 . Projectiles 33 | . . 33 . Explosions . | . . . . Melee . | . . . . Knockbacks 7 | . . 6 1 Impact 1 | . . . 1 Kinetic 6 | . . 6 . Secondary . | . . . . Self-Inflicted Damage . | . . . . Shots . | . . . . Rammed 2 | . . 1 1 Targets Rammed 5 | . . 3 2 Kicked 3 | . . 2 1 Crushed . | . . . . Highest Temperature 356 | . . 356 168 Average Temperature 82 | . . 94 39 Received Heat Transfer 1143 | . . 414 729 Effects 4 | . . 4 . Interference 3 | . . 3 . Short Circuit 1 | . . 1 . Siege Activations . | . . . . Robots Corrupted . | . . . . Combat Hostiles . | . . . . Parts Fried . | . . . . Impact Corruptions . | . . . . Robots Melted . | . . . . Combat Hostiles . | . . . . Parts Melted 3 | . . 3 . Heat Transferred 629 | . . 407 222 Parts Sabotaged . | . . . . Parts Stolen . | . . . . Parts Stripped . | . . . . Power Chain Reactions . | . . . . Missiles Intercepted . | . . . . Alert | -11 -10 -9 -8 ------- Run | Scr Mat Mat Mat Peak Influence 468 | . 34 468 167 Initial 133 | . . 14 133 Average 121 | . 19 190 81 Maximum Alert Level 2 | . . 2 . Low Security (%) 81 | 100 100 55 100 Level 1 14 | . . 33 . Level 2 4 | . . 11 . Level 3 . | . . . . Level 4 . | . . . . Level 5 . | . . . . High Security . | . . . . Max Security . | . . . . Squads Dispatched 5 | . . 2 3 Investigation 2 | . . 1 1 Extermination . | . . . . Reinforcement 3 | . . 1 2 Assault . | . . . . Garrison . | . . . . Intercept . | . . . . Searches Triggered . | . . . . Construction Impeded . | . . . . Haulers Reinforced . | . . . . Active Scanning Responses . | . . . . Cargo Convoy Interrupts . | . . . . Stealth | -11 -10 -9 -8 --------- Run | Scr Mat Mat Mat Distress Signals 1 | . . 1 . Communications Jammed . | . . . . Distress Signals . | . . . . Times Spotted 43 | . . 28 15 Peak Tracking Total 9 | . . 9 7 Tactical Retreats 2 | . . 2 . Traps | -11 -10 -9 -8 ------- Run | Scr Mat Mat Mat Traps Triggered 5 | . 1 1 3 Indirectly . | . . . . Trap Hack Attempts . | . . . . Triggered . | . . . . Disarmed 4 | . . . 4 Reprogrammed . | . . . . Reused . | . . . . Traps Extracted . | . . . . Installed . | . . . . Triggered . | . . . . Machines | -11 -10 -9 -8 ---------- Run | Scr Mat Mat Mat Machines Disabled 2 | . . 1 1 Max in Single Turn 1 | . . 1 1 Garrison Access 1 | . . . 1 Machines Sabotaged . | . . . . Garrisons Compromised . | . . . . Overloaded Fab Kills . | . . . . Hacking | -11 -10 -9 -8 --------- Run | Scr Mat Mat Mat Machines Accessed 13 | . 4 3 6 Terminals 10 | . 4 1 5 Fabricators . | . . . . Repair Stations . | . . . . Recycling Units 1 | . . 1 . Scanalyzers 1 | . . 1 . Garrison Access 1 | . . . 1 Total Hacks 37 | . 16 8 13 Successful 24 | . 10 6 8 Failed 13 | . 6 2 5 Catastrophic 1 | . . 1 . Database Lockouts . | . . . . Manual . | . . . . Terminals 30 | . 16 3 11 Fabricators . | . . . . Repair Stations . | . . . . Recycling Units 1 | . . 1 . Scanalyzers 4 | . . 4 . Garrison Access 2 | . . . 2 Terminal Hacks 18 | . 10 1 7 Record 3 | . 3 . . Prototype ID Bank 2 | . 1 1 . Emergency Access Points 1 | . 1 . . Unreport Threat 1 | . . . 1 Locate Traps 4 | . 3 . 1 Disarm Traps 1 | . . . 1 Maintenance Status 1 | . 1 . . Hauler Manifests 1 | . . . 1 Registered Prototypes 1 | . 1 . . Zone Layout 3 | . . . 3 Fabricator Hacks . | . . . . Repair Station Hacks . | . . . . Recycling Unit Hacks 1 | . . 1 . Report Inventory 1 | . . 1 . Scanalyzer 4 | . . 4 . Insert Component 2 | . . 2 . Analyze 2 | . . 2 . Garrison Access Hacks 1 | . . . 1 Seal Access 1 | . . . 1 Unauthorized Hacks . | . . . . Terminals . | . . . . Fabricators . | . . . . Repair Stations . | . . . . Recycling Units . | . . . . Scanalyzers . | . . . . Garrison Access . | . . . . Data Cores Recovered . | . . . . Used . | . . . . Hacking Detections 10 | . 3 3 4 Full Trace Events 1 | . . 1 . Feedback Events . | . . . . Feedback Blocked . | . . . . Robot Schematics Acquired . | . . . . Robots Built . | . . . . Authchips . | . . . . Time . | . . . . Total Robot Build Rating . | . . . . Part Schematics Acquired 2 | . . 2 . Parts Built . | . . . . Authchips . | . . . . Time . | . . . . Total Part Build Rating . | . . . . Parts Repaired . | . . . . Time . | . . . . Parts Recycled . | . . . . Recycled Matter . | . . . . Retrieved Matter . | . . . . Retrieved Components . | . . . . Parts Scanalyzed 2 | . . 2 . Part Schematics Acquired 2 | . . 2 . Parts Damaged . | . . . . Bothacking | -11 -10 -9 -8 ------------ Run | Scr Mat Mat Mat Used RIF Installer . | . . . . Robots Hacked 1 | . . . 1 Non-combat . | . . . . Combat 1 | . . . 1 Robot Hacks Applied 1 | . . . 1 parse_system 1 | . . . 1 Relay Couplers Released . | . . . . Fabnet Peak Effective % . | . . . . Robots Rewired . | . . . . Allies Hacked . | . . . . Hacks Repelled . | . . . . Allies | -11 -10 -9 -8 -------- Run | Scr Mat Mat Mat Total Allies . | . . . . Largest Group . | . . . . Highest-Rated Group . | . . . . Highest-Rated Ally . | . . . . Total Orders . | . . . . Ally Attacks . | . . . . Total Damage . | . . . . Kills . | . . . . Allies Corrupted . | . . . . Allies Melted . | . . . . Intel | -11 -10 -9 -8 ------- Run | Scr Mat Mat Mat Robot Analysis Total . | . . . . Derelict Logs Recovered . | . . . . Drone Launches . | . . . . Drone Recoveries . | . . . . Exploration | -11 -10 -9 -8 ------------- Run | Scr Mat Mat Mat Turns Passed 1907 | 44 122 805 936 Spaces Moved 1105 | 37 132 516 420 Core 59 | 3 . . 56 Treads . | . . . . Legs 534 | . . 170 364 Wheels 512 | 34 132 346 . Hover . | . . . . Flight . | . . . . Fastest Speed 50 | 50 90 90 50 Average Speed 113 | 87 90 100 138 Slowest Speed 350 | 100 90 120 350 Overloaded Moves . | . . . . Propulsion Burnouts . | . . . . Robots Hopped . | . . . . Cave-ins Triggered . | . . . . Exploration Rate (%) 27 | 3 35 41 31 Regions Visited 3 Branch Regions . Pre-discovered Areas . | . . . . Known Exits Taken 1 | . . 1 . Unknown Exits Taken 2 | 1 1 . . Scrap Searched . | . . . . Spaces Dug . | . . . . Terrain Destroyed 1 | . . 1 . Melee . | . . . . Projectile 1 | . . 1 . AOE . | . . . . Terrain Rammed . | . . . . Walls Destroyed . | . . . . Machines Disabled . | . . . . Actions | -11 -10 -9 -8 --------- Run | Scr Mat Mat Mat Total 1586 | 48 135 686 717 Wait 246 | . . 32 214 Move 1102 | 36 131 515 420 Hop . | . . . . Pick Up 51 | 7 2 26 16 Fast Attach 1 | . . 1 . Attach 32 | 5 2 11 14 Detach 4 | . . 2 2 Swap 17 | . . 13 4 Drop 28 | . . 21 7 Fire 93 | . . 62 31 Melee 7 | . . . 7 Ram 2 | . . 1 1 Kick 3 | . . 2 1 Crush . | . . . . Escape Stasis . | . . . . Rewire . | . . . . Trap . | . . . . Miscellaneous . | . . . . Route ------- -11/Scrapyard -10/Materials (discovered 2 exits: *Mat / [*Min]) -9/Materials -8/Materials History --------- Turn | Location | Event 16 | -11/Scrapyard | Discovered new exit (range 15) 45 | -11/Scrapyard | Entered Materials 102 | -10/Materials | Discovered new exit (range 9) 162 | -10/Materials | Discovered new exit (range 7) 167 | -10/Materials | Entered another Materials area 167 | -9/Materials | Evolved 2 slots: Power x1, Utility x1 305 | -9/Materials | Build established: Mutant 660 | -9/Materials | Core integrity fell below 50% 682 | -9/Materials | Lost 3 parts (2p1n) 691 | -9/Materials | Destroyed 11 combat bots 804 | -9/Materials | Discovered new exit (range 17) 833 | -9/Materials | Identified exit to Materials 972 | -9/Materials | Entered another Materials area 972 | -8/Materials | Evolved 2 slots: Propulsion x2 1278 | -8/Materials | Build established: Scavenger-Skirmisher 1707 | -8/Materials | Lost 4 parts (1p3n) 1861 | -8/Materials | Core integrity fell below 50% 1869 | -8/Materials | Core integrity fell below 20% 1908 | -8/Materials | Destroyed by Y-45 Defender with Heavy Assault Rifle Last Messages --------------- >>parse_system Reading system data... 01858_ Datajack destroyed. 01859_ Deuterium Engine destroyed. 01860_ Slammed into Y-45 Defender. 01862_ Acquired Blade Saw. 01864_ G-47 Trooper destroyed. 01867_ Acquired Aluminum Leg. 01868_ Imp. Terrain Scan Processor destroyed. 01868_ Blade Saw destroyed. 01870_ Acquired Aluminum Leg. 01872_ Kicked G-47 Trooper. 01877_ U-05 Engineer builds a Door. 01885_ Acquired Hammer. 01896_ Aluminum Leg destroyed. 01898_ G-47 Trooper knocked back. 01899_ Aluminum Leg destroyed. 01900_ G-47 Trooper suffers critical hit (Smash). 01900_ G-47 Trooper destroyed. 01908_ Reflective Plating destroyed. Map ----- +----------------------------------------------------+ | | | | | | | | | | | | | | | | | | | | | | | ??????????????????????????????###############????? | | ??????????????????????????????# # #????? | | ??????????????????????????????# !# #????? | | ?????????????????############## # #????? | | ?????????????????? """ ## # #????? | | ???????????????????# "R" ## # #????? | | ???????????????????# " " ## # #????? | | ??????????????????## ## # #???## | | ????????????####### ###+## #???# | | ???????????? ######+#########! | | ??????????????????# #???# # | | ??????????????????# ##### # | | ??????????????????# ####+##### # | | ??????????????????# Yg Y #?# + | | ??????????????????# %# @ ###] # | | ??????????????????# # + %[ # | | ????????????????####+## ################ ## | | ????????????????#[ # #???########### [ # | | ????????????????# # #???# =# | | ????????????????# % ########???# T # | | ????????????????# #??????????# # | | ????????????????#######??????????# ####### # | | ?????????????????????????????????# #?????####### | | ?????????????????????????????????# #???????????? | | ????????????????????????????????## ##??????????? | | ????????????????????????????????# #??????????? | | ????????????????????????????????# #??????????? | | ????????????????????????????????#! ###########? | | ????????????????????????????????# # T #? | | ????????????????????????????????# # #? | | ????????????????????????????????## ## """ """ #? | | ?????????????????????????????????# ## """ """ #? | | ?????????????????????????????????# ## """ """ #? | | ?????????????????????????????????# ## !%[ #? | | ?????????????????????????????????# ## #? | | ?????????????????????????????????# ## #? | | ????????????????###/############## #####+####### | | ????????????? ! ###### | | ????????????? + | +----------------------------------------------------+ Best States ------------- Heat Dissipation 31 Energy Generation 23 Energy Capacity 415 Matter Stores 300 Matter Capacity 300 Sight Range 18 Robot Scan Range 14 Terrain Scan Density 110 Armor Coverage 150 Resistance: TH 10 Evasion (%) 55 Offensive Hacking 10 Item Schematics ----------------- Hvy. Assault Rifle | -9/Materials | Scanalyzed Aluminum Leg | -9/Materials | Scanalyzed Robot Schematics ------------------ None Fabricated ------------ Nothing Alien Tech Used ----------------- None Achievements -------------- None Challenges ------------ None Game ------ Seed GyrokineticFactoryClaymores Manual? 0 Play Time 00:24:31 Cumulative 12.9 hours Start 2022.11.08 @ 22:55:39 End 2022.11.08 @ 23:18:14 Sessions 1 Manual Loads 0 Difficulty Rogue Special Mode None Game No. 41 Rogue 41 Adventurer 0 Explorer 0 Win Type - Total 0 Types 0/0/0/0/0/0/0/0/0 Lore% 13 Gallery% 20 Achievement% 17 Wizard Run 0 Options --------- ASCII 0 Keyboard 0 Movement Numpad Keybinds 0 Fullscreen 1 Font 18/SmallcapsGlow Map View 76x50 Tactical HUD 1 Map Filters NONE Filters NONE Steam 1 RUN: b9b8d2f1-c611-4816-9e4e-38af3a7e63af